fUSD/lending_fUSD_20250602
["ID","MTS","AMOUNT","RATE_DAILY","PERIOD"]
[363720328,1748843450352,-806.99,0.000195,2]
[363720329,1748843450362,-1100.0,0.000195,7]
[363720330,1748843450372,-6730.39154866,0.00019502,2]
[363720331,1748843450383,-416.23334355,0.00019528,2]
[363720332,1748843450392,-535.418581,0.00019535,2]
[363720333,1748843450402,-535.418581,0.00019535,2]
[363720334,1748843450411,-151.0,0.00019589,2]
[363720335,1748843450422,-151.0,0.00019589,2]
[363720336,1748843450431,-151.0,0.00019589,2]
[363720337,1748843450441,-397.4403651,0.00019589,2]
[363720338,1748843450451,-420.0,0.00019589,2]
[363720339,1748843450460,-420.0,0.00019589,2]
[363720340,1748843450470,-420.0,0.00019589,2]
[363720341,1748843450480,-420.0,0.00019589,2]
[363720342,1748843450490,-482.5430764,0.00019589,2]
[363720343,1748843450500,-420.0,0.00019589,2]
[363720344,1748843450511,-317.02,0.00019589,2]
[363720345,1748843450521,-420.0,0.00019589,2]
[363720346,1748843450531,-420.0,0.00019589,2]
[363720347,1748843450541,-323.12983805,0.00019589,2]
[363720348,1748843450551,-420.0,0.00019589,2]
[363720349,1748843450561,-207.63372081,0.00019589,2]
[363720350,1748843450570,-420.0,0.00019589,2]
[363720351,1748843450580,-420.0,0.00019589,2]
[363720352,1748843450591,-420.0,0.00019589,2]
[363720353,1748843450601,-441.62,0.00019589,2]
[363720354,1748843450610,-420.0,0.00019589,2]
[363720355,1748843450620,-528.88125282,0.00019589,2]
[363720356,1748843450630,-420.0,0.00019589,2]
[363720357,1748843450640,-670.15,0.00019589,2]
[363720358,1748843450650,-741.08,0.00019589,2]
[363720359,1748843450660,-305.18563026,0.00019589,2]
[363720360,1748843450670,-572.71,0.00019589,2]
[363720361,1748843450680,-975.27,0.00019589,2]
[363720362,1748843450690,-420.0,0.00019589,2]
[363720363,1748843450700,-420.0,0.00019589,2]
[363720364,1748843450710,-637.55,0.00019589,2]
[363720365,1748843450720,-420.0,0.00019589,2]
[363720366,1748843450729,-420.0,0.00019589,2]
[363720367,1748843450739,-480.94,0.00019589,2]
[363720368,1748843450749,-502.68,0.00019589,2]
[363720369,1748843450759,-420.0,0.00019589,2]
[363720370,1748843450769,-599.16,0.00019589,2]
[363720371,1748843450779,-4165.14,0.00019589,2]
[363720372,1748843450789,-420.0,0.00019589,2]
[363720373,1748843450799,-533.00747578,0.00019589,2]
[363720374,1748843450808,-1682.6,0.00019589,2]
[363720375,1748843450818,-420.0,0.00019589,2]
[363720376,1748843450827,-420.0,0.00019589,2]
[363720377,1748843450837,-420.0,0.00019589,2]
[363720378,1748843450847,-440.78,0.00019589,2]
[363720379,1748843450857,-154.44216338,0.00019589,2]
[363720380,1748843450866,-420.0,0.00019589,2]
[363720381,1748843450876,-420.0,0.00019589,2]
[363720382,1748843450886,-541.1,0.00019589,2]
[363720383,1748843450896,-420.0,0.00019589,2]
[363720384,1748843450907,-420.0,0.00019589,2]
[363720385,1748843450920,-420.0,0.00019589,2]
[363720386,1748843450930,-501.42,0.00019589,2]
[363720387,1748843450941,-420.0,0.00019589,2]
[363720388,1748843450952,-420.0,0.00019589,2]
[363720389,1748843450964,-420.0,0.00019589,2]
[363720390,1748843450974,-277.47552074,0.00019589,2]
[363720391,1748843450984,-420.0,0.00019589,2]
[363720392,1748843450995,-445.41,0.00019589,2]
[363720393,1748843451005,-1367.94,0.00019589,2]
[363720394,1748843451017,-3107.77,0.00019589,2]
[363720395,1748843451026,-539.45,0.00019589,2]
[363720396,1748843451037,-187.79948742,0.00019589,2]
[363720397,1748843451048,-420.0,0.00019589,2]
[363720398,1748843451058,-420.0,0.00019589,2]
[363720399,1748843451068,-322.21,0.00019589,2]
[363720400,1748843451078,-877.77,0.00019589,2]
[363720401,1748843451089,-420.0,0.00019589,2]
[363720402,1748843451099,-420.0,0.00019589,2]
[363720403,1748843451109,-420.0,0.00019589,2]
[363720404,1748843451119,-420.0,0.00019589,2]
[363720405,1748843451129,-420.0,0.00019589,2]
[363720406,1748843451138,-420.0,0.00019589,2]
[363720407,1748843451148,-420.0,0.00019589,2]
[363720408,1748843451158,-420.0,0.00019589,2]
[363720409,1748843451168,-420.0,0.00019589,2]
[363720410,1748843451178,-420.0,0.00019589,2]
[363720411,1748843451187,-420.0,0.00019589,2]
[363720412,1748843451198,-420.0,0.00019589,2]
[363720413,1748843451208,-458.19,0.00019589,2]
[363720414,1748843451219,-420.0,0.00019589,2]
[363720415,1748843451230,-420.0,0.00019589,2]
[363720416,1748843451240,-420.0,0.00019589,2]
[363720417,1748843451251,-420.0,0.00019589,2]
[363720418,1748843451261,-420.0,0.00019589,2]
[363720419,1748843451271,-420.0,0.00019589,2]
[363720420,1748843451281,-420.0,0.00019589,2]
[363720421,1748843451291,-458.71,0.00019589,2]
[363720422,1748843451301,-420.0,0.00019589,2]
[363720423,1748843451310,-1026.72,0.00019589,2]
[363720424,1748843451320,-895.55,0.00019589,2]
[363720425,1748843451331,-420.0,0.00019589,2]
[363720426,1748843451341,-420.0,0.00019589,2]
[363720427,1748843451351,-420.0,0.00019589,2]
[363720428,1748843451361,-420.0,0.00019589,2]
[363720429,1748843451371,-420.0,0.00019589,2]
[363720430,1748843451380,-420.0,0.00019589,2]
[363720431,1748843451392,-1638.44,0.00019589,2]
[363720432,1748843451402,-420.0,0.00019589,2]
[363720433,1748843451412,-420.0,0.00019589,2]
[363720434,1748843451422,-420.0,0.00019589,2]
[363720435,1748843451432,-420.0,0.00019589,2]
[363720436,1748843451639,-324.42122587,0.00019589,2]
[363720437,1748843451649,-420.0,0.00019589,2]
[363720438,1748843451659,-420.0,0.00019589,2]
[363720439,1748843451668,-483.61,0.00019589,2]
[363720440,1748843451678,-977.25,0.00019589,2]
[363720441,1748843451687,-448.43,0.00019589,2]
[363720442,1748843451696,-420.0,0.00019589,2]
[363720443,1748843451706,-471.07,0.00019589,2]
[363720444,1748843451715,-1571.874856,0.00019599,2]
[363720445,1748843451724,-195.571043,0.000196,2]
[363720446,1748843451734,-195.571043,0.000196,2]
[363720447,1748843451743,-806.99,0.000196,2]
[363720448,1748843451753,-1700.0,0.000196,7]
[363720449,1748843451763,-180.25,0.00019619,2]
[363720450,1748843451773,-4358.73164159,0.00019626,2]
[363720451,1748843451783,-150.0,0.0001966,2]
[363720452,1748843451793,-2300.0,0.000197,7]
[363720453,1748843451802,-1000.0,0.000197,2]
[363720454,1748843451812,-295.9,0.00019714,2]
[363720455,1748843451821,-4358.73164159,0.00019717,2]
[363720456,1748843451831,-1000.0,0.00019721,2]
[363720457,1748843451840,-166.69876921,0.00019721,2]
[363720458,1748843451849,-1000.0,0.00019721,2]
[363720459,1748843451859,-664.15099253,0.00019721,2]
[363720460,1748843451868,-1000.0,0.00019721,2]
[363720461,1748843451877,-1000.0,0.00019721,2]
[363720462,1748843451887,-1000.0,0.00019721,2]
[363720463,1748843451896,-535.418581,0.00019726,2]
[363720464,1748843451907,-535.418581,0.00019726,2]
[363720465,1748843451921,-959.01946,0.00019726,2]
[363720466,1748843451931,-959.01946,0.00019726,2]
[363720467,1748843451940,-151.0,0.00019726,2]
[363720468,1748843451950,-151.0,0.00019726,2]
[363720469,1748843451959,-225.645074,0.00019726,2]
[363720470,1748843451968,-420.0,0.00019726,2]
[363720471,1748843451977,-420.0,0.00019726,2]
[363720472,1748843451986,-420.0,0.00019726,2]
[363720473,1748843451996,-420.0,0.00019726,2]
[363720474,1748843452006,-420.0,0.00019726,2]
[363720475,1748843452015,-420.0,0.00019726,2]
[363720476,1748843452025,-420.0,0.00019726,2]
[363720477,1748843452034,-420.0,0.00019726,2]
[363720478,1748843452043,-420.0,0.00019726,2]
[363720479,1748843452053,-420.0,0.00019726,2]
[363720480,1748843452063,-420.0,0.00019726,2]
[363720481,1748843452073,-432.53740769,0.00019726,2]
[363720482,1748843452083,-420.0,0.00019726,2]
[363720483,1748843452092,-670.15,0.00019726,2]
[363720484,1748843452102,-741.08,0.00019726,2]
[363720485,1748843452111,-572.71,0.00019726,2]
[363720486,1748843452121,-975.27,0.00019726,2]
[363720487,1748843452131,-420.0,0.00019726,2]
[363720488,1748843452140,-420.0,0.00019726,2]
[363720489,1748843452149,-637.55,0.00019726,2]
[363720490,1748843452159,-420.0,0.00019726,2]
[363720491,1748843452169,-420.0,0.00019726,2]
[363720492,1748843452179,-480.94,0.00019726,2]
[363720493,1748843452188,-502.68,0.00019726,2]
[363720494,1748843452197,-151.62349111,0.00019726,2]
[363720495,1748843452206,-599.16,0.00019726,2]
[363720496,1748843452216,-4165.14,0.00019726,2]
[363720497,1748843452225,-420.0,0.00019726,2]
[363720498,1748843452235,-1682.6,0.00019726,2]
[363720499,1748843452244,-420.0,0.00019726,2]
[363720500,1748843452254,-420.0,0.00019726,2]
[363720501,1748843452263,-420.0,0.00019726,2]
[363720502,1748843452273,-440.78,0.00019726,2]
[363720503,1748843452283,-420.0,0.00019726,2]
[363720504,1748843452292,-420.0,0.00019726,2]
[363720505,1748843452302,-541.1,0.00019726,2]
[363720506,1748843452311,-420.0,0.00019726,2]
[363720507,1748843452320,-420.0,0.00019726,2]
[363720508,1748843452330,-420.0,0.00019726,2]
[363720509,1748843452341,-501.42,0.00019726,2]
[363720510,1748843452351,-474.46,0.00019726,2]
[363720511,1748843452362,-546.70892394,0.00019726,2]
[363720512,1748843452372,-420.0,0.00019726,2]
[363720513,1748843452383,-420.0,0.00019726,2]
[363720514,1748843452393,-445.41,0.00019726,2]
[363720515,1748843452404,-1367.94,0.00019726,2]
[363720516,1748843452414,-3107.77,0.00019726,2]
[363720517,1748843452423,-420.0,0.00019726,2]
[363720518,1748843452433,-420.0,0.00019726,2]
[363720519,1748843452443,-877.77,0.00019726,2]
[363720520,1748843452452,-420.0,0.00019726,2]
[363720521,1748843452462,-420.0,0.00019726,2]
[363720522,1748843452471,-420.0,0.00019726,2]
[363720523,1748843452481,-420.0,0.00019726,2]
[363720524,1748843452490,-420.0,0.00019726,2]
[363720525,1748843452500,-531.58,0.00019726,2]
[363720526,1748843452509,-420.0,0.00019726,2]
[363720527,1748843452519,-420.0,0.00019726,2]
[363720528,1748843452528,-420.0,0.00019726,2]
[363720529,1748843452538,-420.0,0.00019726,2]
[363720530,1748843452547,-420.0,0.00019726,2]
[363720531,1748843452557,-420.0,0.00019726,2]
[363720532,1748843452566,-522.81,0.00019726,2]
[363720533,1748843452575,-420.0,0.00019726,2]
[363720534,1748843452584,-420.0,0.00019726,2]
[363720535,1748843452594,-398.74,0.00019726,2]
[363720536,1748843452603,-317.67737635,0.00019726,2]
[363720537,1748843452613,-192.53480049,0.00019726,2]
[363720538,1748843452622,-420.0,0.00019726,2]
[363720539,1748843452632,-420.0,0.00019726,2]
[363720540,1748843452641,-1026.72,0.00019726,2]
[363720541,1748843452651,-895.55,0.00019726,2]
[363720542,1748843452660,-317.47,0.00019726,2]
[363720543,1748843452670,-420.0,0.00019726,2]
[363720544,1748843452679,-420.0,0.00019726,2]
[363720545,1748843452689,-429.4140529,0.00019726,2]
[363720546,1748843452698,-420.0,0.00019726,2]
[363720547,1748843452707,-420.0,0.00019726,2]
[363720548,1748843452717,-1638.44,0.00019726,2]
[363720549,1748843452726,-420.0,0.00019726,2]
[363720550,1748843452736,-420.0,0.00019726,2]
[363720551,1748843452746,-420.0,0.00019726,2]
[363720552,1748843452755,-420.0,0.00019726,2]
[363720553,1748843452765,-420.0,0.00019726,2]
[363720554,1748843452775,-420.0,0.00019726,2]
[363720555,1748843452784,-483.61,0.00019726,2]
[363720556,1748843452794,-977.25,0.00019726,2]
[363720557,1748843452803,-448.43,0.00019726,2]
[363720558,1748843452813,-420.0,0.00019726,2]
[363720559,1748843452822,-471.07,0.00019726,2]
[363720560,1748843452831,-156.587,0.00019726,2]
[363720561,1748843452840,-500.0,0.00019747,2]
[363720562,1748843452849,-500.0,0.00019747,2]
[363720563,1748843452857,-150.0,0.00019755,2]
[363720564,1748843452867,-300.0,0.00019763,2]
[363720565,1748843452876,-1035.54653,0.00019796,2]
[363720566,1748843452886,-195.571043,0.000198,2]
[363720567,1748843452895,-195.571043,0.000198,2]
[363720568,1748843452905,-2900.0,0.000198,7]
[363720569,1748843452916,-1000.0,0.000198,2]
[363720570,1748843452927,-4358.73164159,0.00019809,2]
[363720571,1748843452937,-227.187382,0.00019809,2]
[363720572,1748843452946,-151.0,0.00019809,2]
[363720573,1748843452956,-151.0,0.00019809,2]
[363720574,1748843452967,-152.94662,0.00019809,2]
[363720575,1748843452980,-151.0,0.00019809,2]
[363720576,1748843452992,-151.0,0.00019809,2]
[363720577,1748843453003,-9393.49491068,0.0001981,2]
[363720578,1748843453012,-200.0,0.0001984,2]
[363720579,1748843453022,-535.418581,0.00019863,2]
[363720580,1748843453031,-535.418581,0.00019863,2]
[363720581,1748843453040,-959.01946,0.00019863,2]
[363720582,1748843453050,-959.01946,0.00019863,2]
[363720583,1748843453059,-420.0,0.00019863,2]
[363720584,1748843453069,-420.0,0.00019863,2]
[363720585,1748843453079,-420.0,0.00019863,2]
[363720586,1748843453088,-260.96,0.00019863,2]
[363720587,1748843453098,-420.0,0.00019863,2]
[363720588,1748843453108,-207.07084825,0.00019863,2]
[363720589,1748843453118,-396.58,0.00019863,2]
[363720590,1748843453127,-420.0,0.00019863,2]
[363720591,1748843453137,-420.0,0.00019863,2]
[363720592,1748843453147,-420.0,0.00019863,2]
[363720593,1748843453156,-420.0,0.00019863,2]
[363720594,1748843453166,-420.0,0.00019863,2]
[363720595,1748843453175,-670.15,0.00019863,2]
[363720596,1748843453186,-741.08,0.00019863,2]
[363720597,1748843453195,-572.71,0.00019863,2]
[363720598,1748843453205,-975.27,0.00019863,2]
[363720599,1748843453215,-420.0,0.00019863,2]
[363720600,1748843453226,-420.0,0.00019863,2]
[363720601,1748843453236,-637.55,0.00019863,2]
[363720602,1748843453246,-180.06453156,0.00019863,2]
[363720603,1748843453257,-420.0,0.00019863,2]
[363720604,1748843453266,-480.94,0.00019863,2]
[363720605,1748843453276,-502.68,0.00019863,2]
[363720606,1748843453286,-599.16,0.00019863,2]
[363720607,1748843453296,-4165.14,0.00019863,2]
[363720608,1748843453306,-420.0,0.00019863,2]
[363720609,1748843453316,-1682.6,0.00019863,2]
[363720610,1748843453326,-420.0,0.00019863,2]
[363720611,1748843453335,-420.0,0.00019863,2]
[363720612,1748843453345,-360.22,0.00019863,2]
[363720613,1748843453354,-440.78,0.00019863,2]
[363720614,1748843453364,-420.0,0.00019863,2]
[363720615,1748843453373,-420.0,0.00019863,2]
[363720616,1748843453383,-541.1,0.00019863,2]
[363720617,1748843453393,-420.0,0.00019863,2]
[363720618,1748843453403,-420.0,0.00019863,2]
[363720619,1748843453413,-420.0,0.00019863,2]
[363720620,1748843453422,-501.42,0.00019863,2]
[363720621,1748843453432,-420.0,0.00019863,2]
[363720622,1748843453442,-420.0,0.00019863,2]
[363720623,1748843453452,-445.41,0.00019863,2]
[363720624,1748843453462,-1367.94,0.00019863,2]
[363720625,1748843453474,-3107.77,0.00019863,2]
[363720626,1748843453484,-420.0,0.00019863,2]
[363720627,1748843453494,-250.0,0.00019863,2]
[363720628,1748843453503,-877.77,0.00019863,2]
[363720629,1748843453513,-420.0,0.00019863,2]
[363720630,1748843453523,-420.0,0.00019863,2]
[363720631,1748843453532,-420.0,0.00019863,2]
[363720632,1748843453542,-420.0,0.00019863,2]
[363720633,1748843453551,-420.0,0.00019863,2]
[363720634,1748843453561,-420.0,0.00019863,2]
[363720635,1748843453571,-249.61282525,0.00019863,2]
[363720636,1748843453581,-420.0,0.00019863,2]
[363720637,1748843453590,-420.0,0.00019863,2]
[363720638,1748843453600,-420.0,0.00019863,2]
[363720639,1748843453611,-420.0,0.00019863,2]
[363720640,1748843453621,-420.0,0.00019863,2]
[363720641,1748843453631,-420.0,0.00019863,2]
[363720642,1748843453641,-420.0,0.00019863,2]
[363720643,1748843453651,-420.0,0.00019863,2]
[363720644,1748843453660,-1026.72,0.00019863,2]
[363720645,1748843453670,-895.55,0.00019863,2]
[363720646,1748843453680,-420.0,0.00019863,2]
[363720647,1748843453690,-420.0,0.00019863,2]
[363720648,1748843453699,-420.0,0.00019863,2]
[363720649,1748843453709,-420.0,0.00019863,2]
[363720650,1748843453719,-1638.44,0.00019863,2]
[363720651,1748843453728,-420.0,0.00019863,2]
[363720652,1748843453738,-420.0,0.00019863,2]
[363720653,1748843453747,-420.0,0.00019863,2]
[363720654,1748843453757,-420.0,0.00019863,2]
[363720655,1748843453767,-420.0,0.00019863,2]
[363720656,1748843453776,-420.0,0.00019863,2]
[363720657,1748843453786,-483.61,0.00019863,2]
[363720658,1748843453795,-977.25,0.00019863,2]
[363720659,1748843453804,-448.43,0.00019863,2]
[363720660,1748843453814,-420.0,0.00019863,2]
[363720661,1748843453823,-471.07,0.00019863,2]
[363720662,1748843453834,-2000.0,0.000199,2]
[363720663,1748843453843,-535.418581,0.000199,2]
[363720664,1748843453853,-2000.0,0.000199,2]
[363720665,1748843453863,-535.418581,0.000199,2]
[363720666,1748843453872,-2000.0,0.000199,2]
[363720667,1748843453882,-195.571043,0.000199,2]
[363720668,1748843453893,-195.571043,0.000199,2]
[363720669,1748843453902,-151.0,0.000199,2]
[363720670,1748843453913,-166.01416729,0.000199,2]
[363720671,1748843453975,-151.0,0.000199,2]
[363720672,1748843453985,-151.0,0.000199,2]
[363720673,1748843453997,-151.0,0.000199,2]
[363720674,1748843454007,-959.01946,0.000199,2]
[363720675,1748843454017,-959.01946,0.000199,2]
[363720676,1748843454027,-151.0,0.000199,2]
[363720677,1748843454037,-151.0,0.000199,2]
[363720678,1748843454046,-151.0,0.000199,2]
[363720679,1748843454055,-151.0,0.000199,2]
[363720680,1748843454065,-888.18672486,0.000199,2]
[363720681,1748843454074,-4358.73164159,0.000199,2]
[363720682,1748843454084,-151.0,0.000199,2]
[363720683,1748843454094,-151.0,0.000199,2]
[363720684,1748843454104,-151.0,0.000199,2]
[363720685,1748843454114,-151.0,0.000199,2]
[363720686,1748843454124,-500.0,0.000199,7]
[363720687,1748843454133,-151.0,0.000199,2]
[363720688,1748843454142,-157.980437,0.000199,2]
[363720689,1748843454151,-151.0,0.000199,2]
[363720690,1748843454160,-152.14258,0.000199,2]
[363720691,1748843454171,-152.343485,0.000199,2]
[363720692,1748843454180,-151.0,0.000199,2]
[363720693,1748843454190,-6169.66157831,0.000199,2]
[363720694,1748843454200,-1000.0,0.000199,2]
[363720695,1748843454209,-151.0,0.000199,2]
[363720696,1748843454219,-1397.03593805,0.000199,2]
[363720697,1748843454229,-210.96940105,0.000199,3]
[363720698,1748843454239,-199.78647705,0.000199,2]
[363720699,1748843454249,-807.1,0.00019956,2]
[363720700,1748843454259,-943.0,0.00019959,2]
[363720701,1748843454269,-635.0,0.00019959,2]
[363720702,1748843454279,-811.0,0.00019959,2]
[363720703,1748843454288,-1467.0,0.00019959,2]
[363720704,1748843454298,-557.0,0.00019959,2]
[363720705,1748843454307,-925.293,0.00019959,2]
[363720706,1748843454317,-593.971,0.00019959,2]
[363720707,1748843454327,-1271.0,0.00019959,2]
[363720708,1748843454338,-850.0,0.00019959,2]
[363720709,1748843454347,-4075.0,0.00019959,2]
[363720710,1748843454356,-289.136,0.00019959,2]
[363720711,1748843454365,-882.0,0.00019959,2]
[363720712,1748843454375,-7010.0,0.00019959,2]
[363720713,1748843454384,-195.571043,0.00019959,2]
[363720714,1748843454394,-195.571041,0.00019959,2]
[363720715,1748843454404,-151.0,0.00019959,2]
[363720716,1748843454414,-151.0,0.00019959,2]
[363720717,1748843454424,-157.37828,0.00019959,2]
[363720718,1748843454434,-151.90418,0.00019959,2]
[363720719,1748843454443,-151.0,0.00019959,2]
[363720720,1748843454452,-151.0,0.00019959,2]
[363720721,1748843454462,-153.737635,0.00019959,2]
[363720722,1748843454472,-151.0,0.00019959,2]
[363720723,1748843454481,-151.0,0.00019959,2]
[363720724,1748843454490,-151.0,0.00019959,2]
[363720725,1748843454500,-151.0,0.00019959,2]
[363720726,1748843454510,-151.0,0.00019959,2]
[363720727,1748843454520,-482.817164,0.00019959,2]
[363720728,1748843454530,-482.817164,0.00019959,2]
[363720729,1748843454539,-151.0,0.00019959,2]
[363720730,1748843454549,-151.0,0.00019959,2]
[363720731,1748843454558,-2451.556711,0.00019959,2]
[363720732,1748843454568,-2451.556711,0.00019959,2]
[363720733,1748843454577,-151.0,0.00019959,2]
[363720734,1748843454587,-151.0,0.00019959,2]
[363720735,1748843454597,-151.0,0.00019959,2]
[363720736,1748843454606,-151.0,0.00019959,2]
[363720737,1748843454615,-212.979,0.00019968,2]
[363720738,1748843454625,-6159.491,0.00019969,2]
[363720739,1748843454635,-500.0,0.00019973,2]
[363720740,1748843454645,-531.55369202,0.00019973,2]
[363720741,1748843454655,-500.0,0.00019973,2]
[363720742,1748843454664,-500.0,0.00019973,2]
[363720743,1748843454674,-500.0,0.00019973,2]
[363720744,1748843454683,-500.0,0.00019973,2]
[363720745,1748843454692,-500.0,0.00019973,2]
[363720746,1748843454702,-500.0,0.00019973,2]
[363720747,1748843454711,-500.0,0.00019973,2]
[363720748,1748843454720,-609.85119158,0.00019973,2]
[363720749,1748843454729,-500.0,0.00019973,2]
[363720750,1748843454738,-500.0,0.00019973,2]
[363720751,1748843454748,-500.0,0.00019973,2]
[363720752,1748843454760,-500.0,0.00019973,2]
[363720753,1748843454769,-500.0,0.00019973,2]
[363720754,1748843454779,-500.0,0.00019973,2]
[363720755,1748843454788,-500.0,0.00019973,2]
[363720756,1748843454798,-500.0,0.00019973,2]
[363720757,1748843454807,-500.0,0.00019973,2]
[363720758,1748843454817,-500.0,0.00019973,2]
[363720759,1748843454826,-500.0,0.00019973,2]
[363720760,1748843454835,-500.0,0.00019973,2]
[363720761,1748843454844,-500.0,0.00019973,2]
[363720762,1748843454854,-151.0,0.00019973,2]
[363720763,1748843454863,-151.0,0.00019973,2]
[363720764,1748843454872,-151.0,0.00019973,2]
[363720765,1748843454882,-151.0,0.00019973,2]
[363720766,1748843454891,-190.79872359,0.0001999,2]
[363720767,1748843454900,-4180.0,0.0001999,2]
[363720768,1748843454910,-190.79872359,0.0001999,2]
[363720769,1748843454920,-500.0,0.00019992,2]
[363720770,1748843454930,-500.0,0.00019992,2]
[363720771,1748843454940,-775.0,0.00019993,2]
[363720772,1748843454950,-535.418581,0.00019996,2]
[363720773,1748843454961,-535.418589,0.00019996,2]
[363720774,1748843454971,-959.01946,0.00019996,2]
[363720775,1748843454980,-959.01946,0.00019996,2]
[363720776,1748843454991,-959.01946,0.00019996,2]
[363720777,1748843455002,-959.019466,0.00019996,2]
[363720778,1748843455013,-6286.1347241,0.00019996,2]
[363720779,1748843455022,-2873.0150835,0.00019996,2]
[363720780,1748843455032,-63987.2774331,0.00019996,2]
[363720781,1748843455042,-300.0,0.00019999,2]
[363720782,1748843455052,-300.0,0.00019999,2]
[363720783,1748843455063,-300.0,0.00019999,2]
[363720784,1748843455072,-300.0,0.00019999,2]
[363720785,1748843455081,-300.0,0.00019999,2]
[363720786,1748843455091,-2000.0,0.00019999,2]
[363720787,1748843455101,-151.0,0.00019999,2]
[363720788,1748843455110,-151.0,0.00019999,2]
[363720789,1748843455119,-151.0,0.00019999,2]
[363720790,1748843455129,-151.0,0.00019999,2]
[363720791,1748843455137,-151.0,0.00019999,2]
[363720792,1748843455147,-151.0,0.00019999,2]
[363720793,1748843455156,-151.0,0.00019999,2]
[363720794,1748843455166,-151.0,0.00019999,2]
[363720795,1748843455175,-500.0,0.00019999,2]
[363720796,1748843455184,-641.12,0.00019999,2]
[363720797,1748843455193,-500.0,0.00019999,2]
[363720798,1748843455202,-192.3237528,0.0002,2]
[363720799,1748843455211,-364301.62894031,0.0002,2]
[363720800,1748843455220,-239900.79962946,0.0002,2]
[363720801,1748843455679,-420.0,0.00019315,2]
[363720802,1748843455688,-420.0,0.00019452,2]
[363720803,1748843455698,-420.0,0.00019589,2]
[363720804,1748843455707,-420.0,0.00019726,2]
[363720805,1748843455716,-420.0,0.00019863,2]
[363720806,1748843455725,-807.1,0.00019956,2]
[363720807,1748843455735,-7682.237373,0.0002,2]
[363720808,1748843455746,-13618.84039085,0.0002,2]
[363720809,1748843455956,-19330.79315506,0.0002,2]
[363720810,1748843497553,319.22,0.0001707,2]
[363720811,1748843530510,1361.72,0.00018947,2]
[363720812,1748843558398,150.0,0.00019001,2]
[363720813,1748843675671,1000.0,0.00018619,2]
[363720816,1748843866821,316.49,0.00013699,2]
[363720829,1748844109503,-500.0,0.00039565,120]
[363720830,1748844109527,-500.0,0.00039565,120]
[363720831,1748844109550,-500.0,0.00039565,120]
[363720832,1748844109573,-500.0,0.00039565,120]
[363720833,1748844109596,-500.0,0.00039565,120]
[363720834,1748844109622,-2860.54,0.00039565,120]
[363720835,1748844109646,-2860.54,0.00039565,120]
[363720836,1748844109672,-2860.54,0.00039565,120]
[363720837,1748844109697,-2860.54,0.00039565,120]
[363720838,1748844109722,-500.0,0.00039565,120]
[363720839,1748844109747,-2860.54,0.00039565,120]
[363720840,1748844109771,-2860.54,0.00039565,120]
[363720841,1748844109795,-500.0,0.00039565,120]